fUSD/lending_fUSD_20240324
["ID","MTS","AMOUNT","RATE_DAILY","PERIOD"]
[320308402,1711282254253,-500.0,0.00019452,2]
[320308404,1711282254262,-500.0,0.00019452,2]
[320308406,1711282254271,-500.0,0.00019452,2]
[320308408,1711282254281,-500.0,0.00019452,2]
[320308409,1711282254289,-500.0,0.00019452,2]
[320308411,1711282254298,-500.0,0.00019452,2]
[320308413,1711282254307,-500.0,0.00019452,2]
[320308415,1711282254315,-500.0,0.00019452,2]
[320308417,1711282254324,-517.98326008,0.00019452,2]
[320308419,1711282254333,-500.0,0.00019452,2]
[320308421,1711282254342,-500.0,0.00019452,2]
[320308423,1711282254351,-500.0,0.00019452,2]
[320308425,1711282254360,-500.0,0.00019452,2]
[320308428,1711282254370,-500.0,0.00019452,2]
[320308429,1711282254380,-500.0,0.00019452,2]
[320308431,1711282254389,-500.0,0.00019452,2]
[320308433,1711282254398,-500.0,0.00019452,2]
[320308436,1711282254408,-500.0,0.00019452,2]
[320308438,1711282254417,-500.0,0.00019452,2]
[320308440,1711282254426,-500.0,0.00019452,2]
[320308442,1711282254435,-500.0,0.00019452,2]
[320308444,1711282254445,-500.0,0.00019452,2]
[320308446,1711282254454,-500.0,0.00019452,2]
[320308448,1711282254463,-500.0,0.00019452,2]
[320308450,1711282254472,-500.0,0.00019452,2]
[320308451,1711282254482,-500.0,0.00019452,2]
[320308453,1711282254491,-500.0,0.00019452,2]
[320308456,1711282254501,-500.0,0.00019452,2]
[320308458,1711282254510,-500.0,0.00019452,2]
[320308460,1711282254519,-1773.38,0.00019452,2]
[320308461,1711282254529,-500.0,0.00019452,2]
[320308463,1711282254538,-500.0,0.00019452,2]
[320308465,1711282254548,-205.00227938,0.00019452,2]
[320308467,1711282254557,-500.0,0.00019452,2]
[320308469,1711282254566,-500.0,0.00019452,2]
[320308471,1711282254575,-500.0,0.00019452,2]
[320308473,1711282254584,-500.0,0.00019452,2]
[320308475,1711282254594,-542.51948351,0.00019452,2]
[320308477,1711282254604,-500.0,0.00019452,2]
[320308479,1711282254613,-500.0,0.00019452,2]
[320308481,1711282254622,-500.0,0.00019452,2]
[320308483,1711282254632,-500.0,0.00019452,2]
[320308485,1711282254641,-500.0,0.00019452,2]
[320308487,1711282254650,-505.74482873,0.00019452,2]
[320308489,1711282254659,-500.0,0.00019452,2]
[320308491,1711282254668,-500.0,0.00019452,2]
[320308493,1711282254678,-500.0,0.00019452,2]
[320308495,1711282254687,-500.0,0.00019452,2]
[320308497,1711282254697,-506.4908449,0.00019452,2]
[320308499,1711282254710,-504.40624839,0.00019452,2]
[320308501,1711282254719,-500.0,0.00019452,2]
[320308504,1711282254730,-500.0,0.00019452,2]
[320308506,1711282254742,-500.0,0.00019452,2]
[320308508,1711282254751,-2521.64,0.00019452,2]
[320308510,1711282254761,-500.0,0.00019452,2]
[320308512,1711282254770,-500.0,0.00019452,2]
[320308514,1711282254779,-500.0,0.00019452,2]
[320308516,1711282254790,-500.0,0.00019452,2]
[320308518,1711282254799,-500.0,0.00019452,2]
[320308520,1711282254809,-500.0,0.00019452,2]
[320308522,1711282254819,-500.0,0.00019452,2]
[320308524,1711282254828,-506.47384845,0.00019452,2]
[320308526,1711282254837,-500.0,0.00019452,2]
[320308528,1711282254847,-500.0,0.00019452,2]
[320308530,1711282254856,-500.0,0.00019452,2]
[320308532,1711282254866,-195.29386678,0.00019452,2]
[320308534,1711282254876,-500.0,0.00019452,2]
[320308536,1711282254885,-500.0,0.00019452,2]
[320308538,1711282254894,-500.0,0.00019452,2]
[320308540,1711282254904,-500.0,0.00019452,2]
[320308542,1711282254913,-500.0,0.00019452,2]
[320308544,1711282254923,-506.97458673,0.00019452,2]
[320308546,1711282254932,-500.0,0.00019452,2]
[320308548,1711282254941,-150.0,0.00019452,2]
[320308550,1711282254951,-500.0,0.00019452,2]
[320308552,1711282254960,-500.0,0.00019452,2]
[320308554,1711282254969,-500.0,0.00019452,2]
[320308556,1711282254979,-500.0,0.00019452,2]
[320308558,1711282254988,-500.0,0.00019452,2]
[320308560,1711282254997,-505.17127314,0.00019452,2]
[320308562,1711282255007,-500.0,0.00019452,2]
[320308564,1711282255016,-473.86244051,0.00019452,2]
[320308566,1711282255025,-500.0,0.00019452,2]
[320308568,1711282255034,-500.0,0.00019452,2]
[320308570,1711282255044,-740.11,0.00019452,2]
[320308572,1711282255054,-500.0,0.00019452,2]
[320308574,1711282255063,-500.0,0.00019452,2]
[320308576,1711282255073,-500.0,0.00019452,2]
[320308579,1711282255082,-500.0,0.00019452,2]
[320308581,1711282255091,-500.0,0.00019452,2]
[320308583,1711282255101,-500.0,0.00019452,2]
[320308585,1711282255111,-587.6881669,0.00019452,2]
[320308587,1711282255120,-500.0,0.00019452,2]
[320308589,1711282255129,-500.0,0.00019452,2]
[320308591,1711282255138,-500.0,0.00019452,2]
[320308593,1711282255147,-505.5646184,0.00019452,2]
[320308595,1711282255156,-500.0,0.00019452,2]
[320308597,1711282255165,-500.0,0.00019452,2]
[320308599,1711282255174,-500.0,0.00019452,2]
[320308601,1711282255183,-500.0,0.00019452,2]
[320308603,1711282255192,-500.0,0.00019452,2]
[320308605,1711282255202,-500.0,0.00019452,2]
[320308607,1711282255211,-294.59433766,0.00019452,2]
[320308609,1711282255221,-487.22322218,0.00019452,2]
[320308610,1711282255230,-500.0,0.00019452,2]
[320308613,1711282255240,-500.0,0.00019452,2]
[320308615,1711282255250,-500.0,0.00019452,2]
[320308617,1711282255259,-507.01385537,0.00019452,2]
[320308618,1711282255268,-500.0,0.00019452,2]
[320308620,1711282255278,-500.0,0.00019452,2]
[320308623,1711282255287,-500.0,0.00019452,2]
[320308625,1711282255296,-564.4611523,0.00019452,2]
[320308626,1711282255306,-500.0,0.00019452,2]
[320308628,1711282255315,-500.0,0.00019452,2]
[320308630,1711282255324,-500.0,0.00019452,2]
[320308632,1711282255334,-500.0,0.00019452,2]
[320308635,1711282255343,-500.0,0.00019452,2]
[320308637,1711282255352,-500.0,0.00019452,2]
[320308639,1711282255362,-500.0,0.00019452,2]
[320308641,1711282255371,-500.0,0.00019452,2]
[320308643,1711282255381,-500.0,0.00019452,2]
[320308645,1711282255390,-500.0,0.00019452,2]
[320308647,1711282255399,-500.0,0.00019452,2]
[320308649,1711282255408,-500.0,0.00019452,2]
[320308651,1711282255418,-500.0,0.00019452,2]
[320308653,1711282255427,-624.74008611,0.00019452,2]
[320308655,1711282255436,-500.0,0.00019452,2]
[320308657,1711282255445,-500.0,0.00019452,2]
[320308659,1711282255455,-500.0,0.00019452,2]
[320308661,1711282255465,-500.0,0.00019452,2]
[320308662,1711282255474,-500.0,0.00019452,2]
[320308664,1711282255484,-500.0,0.00019452,2]
[320308666,1711282255493,-500.0,0.00019452,2]
[320308668,1711282255502,-1701.69,0.00019452,2]
[320308670,1711282255512,-500.0,0.00019452,2]
[320308672,1711282255521,-504.57981376,0.00019452,2]
[320308674,1711282255530,-500.0,0.00019452,2]
[320308677,1711282255540,-500.0,0.00019452,2]
[320308679,1711282255549,-500.0,0.00019452,2]
[320308681,1711282255558,-508.58110193,0.00019452,2]
[320308682,1711282255567,-500.0,0.00019452,2]
[320308684,1711282255576,-500.0,0.00019452,2]
[320308686,1711282255585,-500.0,0.00019452,2]
[320308688,1711282255594,-500.0,0.00019452,2]
[320308690,1711282255603,-500.0,0.00019452,2]
[320308692,1711282255612,-523.59172133,0.00019452,2]
[320308694,1711282255622,-500.0,0.00019452,2]
[320308696,1711282255631,-500.0,0.00019452,2]
[320308699,1711282255640,-500.0,0.00019452,2]
[320308700,1711282255649,-500.0,0.00019452,2]
[320308702,1711282255658,-500.0,0.00019452,2]
[320308704,1711282255667,-500.0,0.00019452,2]
[320308707,1711282255677,-500.0,0.00019452,2]
[320308709,1711282255686,-500.0,0.00019452,2]
[320308711,1711282255696,-500.0,0.00019452,2]
[320308712,1711282255708,-500.45,0.00019452,2]
[320308714,1711282255717,-500.0,0.00019452,2]
[320308716,1711282255726,-507.10245785,0.00019452,2]
[320308718,1711282255736,-500.0,0.00019452,2]
[320308720,1711282255745,-500.0,0.00019452,2]
[320308722,1711282255754,-500.0,0.00019452,2]
[320308724,1711282255763,-500.0,0.00019452,2]
[320308726,1711282255773,-500.0,0.00019452,2]
[320308729,1711282255783,-500.0,0.00019452,2]
[320308731,1711282255793,-500.0,0.00019452,2]
[320308732,1711282255802,-500.0,0.00019452,2]
[320308734,1711282255812,-500.0,0.00019452,2]
[320308736,1711282255821,-500.0,0.00019452,2]
[320308738,1711282255831,-500.0,0.00019452,2]
[320308740,1711282255840,-1031.03,0.00019452,2]
[320308742,1711282255849,-500.0,0.00019452,2]
[320308744,1711282255858,-500.0,0.00019452,2]
[320308746,1711282255870,-988.99,0.00019452,2]
[320308748,1711282255880,-500.0,0.00019452,2]
[320308750,1711282255889,-500.0,0.00019452,2]
[320308752,1711282255898,-500.0,0.00019452,2]
[320308757,1711282255964,-573.95814955,0.00019452,2]
[320308758,1711282255974,-500.0,0.00019452,2]
[320308759,1711282255985,-500.0,0.00019452,2]
[320308760,1711282255995,-500.0,0.00019452,2]
[320308761,1711282256004,-500.0,0.00019452,2]
[320308762,1711282256014,-500.0,0.00019452,2]
[320308763,1711282256024,-2839.18,0.00019452,2]
[320308764,1711282256033,-500.0,0.00019452,2]
[320308765,1711282256043,-500.0,0.00019452,2]
[320308767,1711282256052,-500.0,0.00019452,2]
[320308769,1711282256062,-500.0,0.00019452,2]
[320308771,1711282256072,-10057.25,0.00019452,2]
[320308773,1711282256081,-700.13,0.00019452,2]
[320308775,1711282256091,-321.95,0.00019452,2]
[320308777,1711282256100,-500.0,0.00019452,2]
[320308779,1711282256109,-500.0,0.00019452,2]
[320308781,1711282256119,-500.0,0.00019452,2]
[320308783,1711282256128,-500.0,0.00019452,2]
[320308785,1711282256137,-506.6469888,0.00019452,2]
[320308787,1711282256146,-500.0,0.00019452,2]
[320308789,1711282256155,-500.0,0.00019452,2]
[320308791,1711282256165,-500.0,0.00019452,2]
[320308793,1711282256175,-610.58,0.00019452,2]
[320308795,1711282256185,-500.0,0.00019452,2]
[320308797,1711282256193,-500.0,0.00019452,2]
[320308799,1711282256203,-500.0,0.00019452,2]
[320308801,1711282256212,-500.0,0.00019452,2]
[320308803,1711282256221,-505.94685896,0.00019452,2]
[320308805,1711282256230,-532.94,0.00019452,2]
[320308807,1711282256240,-500.0,0.00019452,2]
[320308809,1711282256249,-506.64346535,0.00019452,2]
[320308811,1711282256257,-500.0,0.00019452,2]
[320308813,1711282256266,-500.0,0.00019452,2]
[320308815,1711282256275,-500.0,0.00019452,2]
[320308817,1711282256284,-500.0,0.00019452,2]
[320308819,1711282256293,-581.50439028,0.00019452,2]
[320308821,1711282256302,-527.36,0.00019452,2]
[320308823,1711282256312,-500.0,0.00019452,2]
[320308825,1711282256321,-500.0,0.00019452,2]
[320308827,1711282256330,-500.0,0.00019452,2]
[320308829,1711282256340,-500.0,0.00019452,2]
[320308831,1711282256349,-500.0,0.00019452,2]
[320308833,1711282256359,-500.0,0.00019452,2]
[320308835,1711282256368,-500.0,0.00019452,2]
[320308837,1711282256377,-500.0,0.00019452,2]
[320308839,1711282256386,-500.0,0.00019452,2]
[320308841,1711282256396,-520.05,0.00019452,2]
[320308843,1711282256405,-500.0,0.00019452,2]
[320308845,1711282256414,-500.0,0.00019452,2]
[320308847,1711282256423,-500.0,0.00019452,2]
[320308848,1711282256433,-500.0,0.00019452,2]
[320308851,1711282256442,-372.6,0.00019452,2]
[320308853,1711282256452,-500.0,0.00019452,2]
[320308855,1711282256461,-500.0,0.00019452,2]
[320308856,1711282256470,-500.0,0.00019452,2]
[320308859,1711282256481,-500.0,0.00019452,2]
[320308861,1711282256491,-1118.38,0.00019452,2]
[320308862,1711282256500,-500.0,0.00019452,2]
[320308865,1711282256509,-500.0,0.00019452,2]
[320308866,1711282256518,-500.0,0.00019452,2]
[320308868,1711282256528,-500.0,0.00019452,2]
[320308870,1711282256537,-500.0,0.00019452,2]
[320308872,1711282256547,-639.13,0.00019452,2]
[320308874,1711282256556,-500.0,0.00019452,2]
[320308876,1711282256566,-500.0,0.00019452,2]
[320308878,1711282256575,-500.0,0.00019452,2]
[320308880,1711282256584,-500.0,0.00019452,2]
[320308883,1711282256594,-500.0,0.00019452,2]
[320308885,1711282256603,-500.0,0.00019452,2]
[320308887,1711282256612,-500.0,0.00019452,2]
[320308889,1711282256621,-500.0,0.00019452,2]
[320308890,1711282256630,-500.0,0.00019452,2]
[320308892,1711282256640,-500.0,0.00019452,2]
[320308894,1711282256650,-500.0,0.00019452,2]
[320308896,1711282256659,-1641.41,0.00019452,2]
[320308899,1711282256669,-500.0,0.00019452,2]
[320308901,1711282256678,-973.02,0.00019452,2]
[320308903,1711282256688,-646.96,0.00019452,2]
[320308905,1711282256699,-512.37,0.00019452,2]
[320308907,1711282256709,-500.0,0.00019452,2]
[320308908,1711282256718,-518.41,0.00019452,2]
[320308909,1711282256729,-500.0,0.00019452,2]
[320308911,1711282256740,-500.39,0.00019452,2]
[320308913,1711282256750,-500.0,0.00019452,2]
[320308915,1711282256760,-500.0,0.00019452,2]
[320308917,1711282256769,-500.0,0.00019452,2]
[320308919,1711282256779,-500.0,0.00019452,2]
[320308921,1711282256788,-500.0,0.00019452,2]
[320308923,1711282256798,-1472.62,0.00019452,2]
[320308925,1711282256807,-500.0,0.00019452,2]
[320308927,1711282256816,-582.48,0.00019452,2]
[320308929,1711282256825,-500.0,0.00019452,2]
[320308931,1711282256834,-500.0,0.00019452,2]
[320308933,1711282256844,-1362.31,0.00019452,2]
[320308935,1711282256853,-500.0,0.00019452,2]
[320308937,1711282256863,-500.0,0.00019452,2]
[320308939,1711282256873,-658.48,0.00019452,2]
[320308941,1711282256882,-500.0,0.00019452,2]
[320308943,1711282256892,-500.0,0.00019452,2]
[320308944,1711282256901,-500.0,0.00019452,2]
[320308946,1711282256910,-500.0,0.00019452,2]
[320308948,1711282256920,-500.0,0.00019452,2]
[320308950,1711282256929,-500.0,0.00019452,2]
[320308952,1711282256938,-686.45,0.00019452,2]
[320308954,1711282256947,-2713.04,0.00019452,2]
[320308956,1711282256957,-500.0,0.00019452,2]
[320308958,1711282256966,-500.0,0.00019452,2]
[320308960,1711282256976,-500.0,0.00019452,2]
[320308962,1711282256986,-526.35,0.00019452,2]
[320308964,1711282256995,-767.64,0.00019452,2]
[320308966,1711282257005,-721.74,0.00019452,2]
[320308968,1711282257014,-500.0,0.00019452,2]
[320308970,1711282257023,-379.84437163,0.00019452,2]
[320308972,1711282257033,-500.0,0.00019452,2]
[320308974,1711282257042,-500.0,0.00019452,2]
[320308976,1711282257051,-500.0,0.00019452,2]
[320308978,1711282257060,-500.0,0.00019452,2]
[320308979,1711282257069,-507.66480558,0.00019452,2]
[320308981,1711282257078,-500.0,0.00019452,2]
[320308983,1711282257087,-606.3,0.00019452,2]
[320308985,1711282257097,-500.0,0.00019452,2]
[320308987,1711282257106,-604.56,0.00019452,2]
[320308989,1711282257116,-1469.79,0.00019452,2]
[320308991,1711282257125,-500.0,0.00019452,2]
[320308993,1711282257134,-500.0,0.00019452,2]
[320308995,1711282257143,-456.9884784,0.00019452,2]
[320308997,1711282257152,-500.0,0.00019452,2]
[320308999,1711282257161,-500.0,0.00019452,2]
[320309001,1711282257172,-2912.93,0.00019452,2]
[320309003,1711282257181,-500.0,0.00019452,2]
[320309005,1711282257190,-500.0,0.00019452,2]
[320309007,1711282257199,-569.24,0.00019452,2]
[320309009,1711282257209,-500.0,0.00019452,2]
[320309011,1711282257218,-751.46,0.00019452,2]
[320309013,1711282257227,-860.54,0.00019452,2]
[320309015,1711282257237,-500.0,0.00019452,2]
[320309017,1711282257246,-500.0,0.00019452,2]
[320309019,1711282257254,-500.0,0.00019452,2]
[320309021,1711282257263,-2836.85,0.00019452,2]
[320309023,1711282257273,-500.0,0.00019452,2]
[320309025,1711282257282,-500.0,0.00019452,2]
[320309027,1711282257290,-200.0,0.00019452,2]
[320309029,1711282257299,-500.0,0.00019452,2]
[320309031,1711282257308,-500.0,0.00019452,2]
[320309033,1711282257317,-500.0,0.00019452,2]
[320309035,1711282257327,-500.0,0.00019452,2]
[320309037,1711282257336,-500.0,0.00019452,2]
[320309039,1711282257345,-500.0,0.00019452,2]
[320309041,1711282257353,-500.0,0.00019452,2]
[320309043,1711282257362,-943.13,0.00019452,2]
[320309045,1711282257371,-500.0,0.00019452,2]
[320309047,1711282257380,-500.0,0.00019452,2]
[320309049,1711282257389,-898.84,0.00019452,2]
[320309051,1711282257398,-839.8,0.00019452,2]
[320309052,1711282257407,-500.0,0.00019452,2]
[320309055,1711282257417,-1842.91,0.00019452,2]
[320309056,1711282257426,-557.2,0.00019452,2]
[320309058,1711282257435,-500.0,0.00019452,2]
[320309060,1711282257444,-500.0,0.00019452,2]
[320309062,1711282257453,-553.31,0.00019452,2]
[320309064,1711282257462,-1312.91,0.00019452,2]
[320309066,1711282257472,-500.0,0.00019452,2]
[320309068,1711282257482,-504.08,0.00019452,2]
[320309070,1711282257491,-1166.65,0.00019452,2]
[320309072,1711282257500,-500.0,0.00019452,2]
[320309074,1711282257509,-500.0,0.00019452,2]
[320309076,1711282257518,-1025.19,0.00019452,2]
[320309078,1711282257527,-500.0,0.00019452,2]
[320309080,1711282257536,-500.0,0.00019452,2]
[320309082,1711282257544,-500.0,0.00019452,2]
[320309084,1711282257553,-500.0,0.00019452,2]
[320309086,1711282257563,-500.0,0.00019452,2]
[320309088,1711282257572,-500.0,0.00019452,2]
[320309090,1711282257581,-2335.62,0.00019452,2]
[320309092,1711282257591,-500.0,0.00019452,2]
[320309094,1711282257600,-500.0,0.00019452,2]
[320309096,1711282257609,-500.0,0.00019452,2]
[320309098,1711282257618,-957.23,0.00019452,2]
[320309100,1711282257627,-500.0,0.00019452,2]
[320309102,1711282257636,-500.0,0.00019452,2]
[320309104,1711282257645,-500.0,0.00019452,2]
[320309106,1711282257654,-500.0,0.00019452,2]
[320309108,1711282257664,-500.0,0.00019452,2]
[320309110,1711282257673,-2234.77,0.00019452,2]
[320309113,1711282257684,-500.0,0.00019452,2]
[320309114,1711282257697,-723.86,0.00019452,2]
[320309117,1711282257707,-500.0,0.00019452,2]
[320309119,1711282257716,-1576.44,0.00019452,2]
[320309121,1711282257726,-500.0,0.00019452,2]
[320309123,1711282257737,-1297.97,0.00019452,2]
[320309125,1711282257747,-500.0,0.00019452,2]
[320309127,1711282257756,-500.0,0.00019452,2]
[320309129,1711282257765,-242.98,0.00019452,2]
[320309131,1711282257777,-500.0,0.00019452,2]
[320309133,1711282257788,-3736.82,0.00019452,2]
[320309135,1711282257798,-2449.34,0.00019452,2]
[320309137,1711282257808,-616.35,0.00019452,2]
[320309139,1711282257819,-500.0,0.00019452,2]
[320309141,1711282257828,-500.0,0.00019452,2]
[320309143,1711282257838,-2119.88,0.00019452,2]
[320309145,1711282257847,-500.0,0.00019452,2]
[320309146,1711282257857,-500.0,0.00019452,2]
[320309148,1711282257867,-500.0,0.00019452,2]
[320309151,1711282257877,-500.0,0.00019452,2]
[320309152,1711282257887,-500.0,0.00019452,2]
[320309154,1711282257896,-2069.21,0.00019452,2]
[320309157,1711282257906,-1086.23,0.00019452,2]
[320309159,1711282257916,-500.0,0.00019452,2]
[320309161,1711282257925,-500.0,0.00019452,2]
[320309163,1711282257934,-240.89,0.00019452,2]
[320309165,1711282257944,-603.62,0.00019452,2]
[320309167,1711282257953,-500.0,0.00019452,2]
[320309169,1711282257963,-500.0,0.00019452,2]
[320309171,1711282257972,-914.56,0.00019452,2]
[320309173,1711282257982,-1326.34,0.00019452,2]
[320309175,1711282257992,-500.0,0.00019452,2]
[320309177,1711282258001,-768.13,0.00019452,2]
[320309179,1711282258010,-579.0092463,0.00019452,2]
[320309181,1711282258020,-500.0,0.00019452,2]
[320309183,1711282258028,-500.0,0.00019452,2]
[320309185,1711282258038,-1205.85,0.00019452,2]
[320309187,1711282258048,-778.77,0.00019452,2]
[320309189,1711282258057,-500.0,0.00019452,2]
[320309191,1711282258067,-228.01254978,0.00019452,2]
[320309193,1711282258077,-463.0203166,0.00019452,2]
[320309243,1711282258535,-500.0,0.00019178,2]
[320309245,1711282258545,-36.9796834,0.00019452,2]
[320309247,1711282258555,-631.37,0.00019452,2]
[320309249,1711282258564,-1758.52,0.00019452,2]
[320309251,1711282258573,-500.0,0.00019452,2]
[320309253,1711282258582,-1027.6766259,0.00019452,2]
[320309272,1711282258858,-532.7,0.00019178,2]
[320309274,1711282258867,-91.39688597,0.00019178,2]
[320309279,1711282258905,-408.60311403,0.00019178,2]
[320309281,1711282258914,-387.3933741,0.00019452,2]
[320309283,1711282258924,-500.0,0.00019452,2]
[320309285,1711282258933,-500.0,0.00019452,2]
[320309287,1711282258942,-500.0,0.00019452,2]
[320309289,1711282258951,-177.99529287,0.00019452,2]
[320309849,1711282281266,703.99626519,0.00014589,2]
[320309850,1711282344963,7465.98897324,0.00014589,2]
[320309851,1711282356952,1497.27374119,0.00014589,2]
[320309853,1711282894144,366.8,0.00015788,2]
[320309902,1711283240169,278.88792328,0.00015788,2]
[320309903,1711283248454,-1228.87819461,0.00016198,2]
[320309911,1711283314677,161.14800105,0.00019,20]
[320309912,1711283331392,348.46,0.00015575,2]
[320309930,1711283432226,-3511.43314688,0.000175,2]
[320309931,1711283432235,-250.0,0.00017515,2]
[320309932,1711283432245,-910.0,0.00017524,2]
[320309933,1711283432255,-250.0,0.00017548,2]
[320309934,1711283432264,-1546.73386395,0.0001756,2]
[320309935,1711283432281,-8378.94613605,0.0001756,2]
[320309936,1711283432293,-2913.04,0.00017572,2]
[320309937,1711283432302,-1376.99,0.00017584,2]
[320309938,1711283432313,-56.96561234,0.00017637,2]
[320309939,1711283432324,-187.49438766,0.00017637,2]
[320309940,1711283432334,-163.84,0.00017642,2]
[320309941,1711283432344,-500.0,0.00017645,2]
[320309942,1711283432353,-148.16561234,0.0001768,2]
[320309943,1711283432390,-8.09438766,0.0001768,2]
[320309944,1711283432399,-2645.71,0.0001768,2]
[320309945,1711283432408,-164.82,0.00017681,2]
[320309946,1711283432418,-150.0,0.00017727,2]
[320309947,1711283432427,-150.0,0.00017729,2]
[320309948,1711283432437,-150.0,0.00017729,2]
[320309949,1711283432447,-150.0,0.00017729,2]
[320309950,1711283432456,-150.0,0.00017729,2]
[320309951,1711283432465,-150.0,0.00017729,2]
[320309952,1711283432475,-150.99,0.00017756,2]
[320309953,1711283432484,-499.99,0.00017756,2]
[320309954,1711283432493,-348.46,0.00017839,2]
[320309955,1711283432503,-1279.06,0.00017888,2]
[320309956,1711283432512,-150.0,0.00017893,2]
[320309957,1711283432521,-14339.6608,0.000179,2]
[320309958,1711283432531,-4979.3403,0.000179,2]
[320309959,1711283432541,-150.0,0.00018057,2]
[320309960,1711283432551,-151.79,0.00018111,2]
[320309962,1711283432560,-150.0,0.00018123,2]
[320309963,1711283432569,-4016.0,0.000182,2]
[320309965,1711283432578,-150.0,0.00018221,2]
[320309967,1711283432588,-151.79,0.00018232,2]
[320309969,1711283432598,-151.79,0.00018353,2]
[320309971,1711283432609,-150.0,0.00018385,2]
[320309973,1711283432619,-151.79,0.00018474,2]
[320309975,1711283432630,-150.0,0.00018517,2]
[320309977,1711283432639,-150.0,0.0001855,2]
[320309978,1711283432648,-150.0,0.00018714,2]
[320309979,1711283432660,-981.21451232,0.00018741,2]
[320309980,1711283432675,-306.20467746,0.00018741,2]
[320309981,1711283432700,-558.47081022,0.00018741,2]
[320309982,1711283432713,-270.35255238,0.00018751,2]
[320309983,1711283432724,-188.00366125,0.00018783,2]
[320309984,1711283432735,-160.07391968,0.00018824,2]
[320309985,1711283432747,-150.0,0.00018878,2]
[320309986,1711283432760,-393.0990564,0.00018904,2]
[320309987,1711283432773,-1724.9009436,0.00018904,2]
[320309988,1711283432783,-166.52535599,0.00018909,2]
[320309989,1711283432795,-150.0,0.00018911,2]
[320309990,1711283432805,-160.674,0.0001894,2]
[320309991,1711283432816,-446.106,0.0001894,2]
[320309992,1711283432828,-358.0,0.0001894,2]
[320309993,1711283432838,-2957.0,0.0001894,2]
[320309994,1711283432849,-1460.0,0.0001894,2]
[320309995,1711283432859,-2414.0,0.0001894,2]
[320309996,1711283432870,-1625.0,0.0001894,2]
[320309997,1711283432879,-213.0,0.0001894,2]
[320309998,1711283432890,-1377.0,0.0001894,2]
[320309999,1711283432900,-4768.0,0.0001894,2]
[320310000,1711283432911,-29097.18435487,0.0001894,2]
[320310001,1711283432925,-13839.81564513,0.0001894,2]
[320310002,1711283432937,-2446.0,0.0001894,2]
[320310003,1711283432947,-230.01448058,0.00018987,2]
[320310004,1711283432959,-3259.98022799,0.00018988,2]
[320310005,1711283432969,-1250.0,0.00019,3]
[320310006,1711283432979,-184.07223404,0.00019002,2]
[320310007,1711283432989,-150.0,0.00019042,2]
[320310008,1711283432999,-159.46812482,0.00019052,2]
[320310009,1711283433010,-539.47475713,0.00019078,2]
[320310010,1711283433020,-174.3956953,0.00019078,2]
[320310011,1711283433033,-265.0502047,0.00019078,2]
[320310012,1711283433046,-503.5352,0.00019078,2]
[320310013,1711283433059,-971.4145953,0.00019177,2]
[320310014,1711283433072,-695.881366,0.00019177,2]